[Event "FIDE World School-ch G-15 2025"]
[Site "Vrnjacka Banja"]
[Date "2025.03.25"]
[Round "6.1"]
[White "Preobrazhenskaya, Diana"]
[Black "Japparbekova, Malika"]
[Result "0-1"]
[Annotator "NA RC"]
[ECO "B35"]
[WhiteElo "2032"]
[BlackElo "1878"]
[PlyCount "110"]
[EventDate "2025.03.19"]
[EventType "swiss"]
[EventCountry "SRB"]
[SourceTitle "playchess.com"]
[Source "ChessBase"]
[SourceQuality "1"]
[TimeControl "5400+30"]

1. e4 {[%emt 0:00:02]} c5 {[%emt 0:00:05]} 2. Nf3 {[%emt 0:00:07]} g6 {[%emt 0:00:08]} 3. d4 {[%emt 0:00:10]} cxd4 {[%emt 0:00:06]} 4. Nxd4 {[%emt 0:00:04]} Nc6 {[%emt 0:00:06]} 5. Nc3 {[%emt 0:00:13]} Bg7 {[%emt 0:02:35]} 6. Be3 {[%emt 0:00:20]} Nf6 {[%emt 0:01:11]} 7. Bc4 {[%emt 0:00:05]} O-O {[%emt 0:00:16]} 8. Bb3 {[%emt 0:00:08]} d5 {[%emt 0:01:56]} 9. Nxc6 {[%emt 0:07:05]} bxc6 {[%emt 0:00:09]} 10. exd5 {[%emt 0:02:53]} Nxd5 {[%emt 0:10:02]} 11. Nxd5 {[%emt 0:09:59]} cxd5 {[%emt 0:00:57]} 12. O-O {[%emt 0:05:02]} Bb7 {[%emt 0:19:14]} 13. c3 {[%emt 0:02:39]} e5 {[%emt 0:04:59]} 14. Qg4 {[%emt 0:06:09]} Qc7 {[%emt 0:05:02]} 15. Rad1 {[%emt 0:05:04]} Rad8 {[%emt 0:02:21]} 16. Qa4 {[%emt 0:13:51]} Rd7 {[%emt 0:11:41]} 17. Rfe1 {[%emt 0:07:41]} Bc6 {[%emt 0:02:58]} 18. Qh4 {[%emt 0:01:10]} Re8 {[%emt 0:03:25]} 19. Bg5 {[%emt 0:02:22]} a5 {[%emt 0:02:10]} 20. Re3 {[%emt 0:05:10]} f5 {[%emt 0:09:29]} 21. Rh3 {[%emt 0:03:21]} Bh8 {[%emt 0:02:24]} 22. Rhd3 {[%emt 0:09:30]} Qb7 {[%emt 0:04:31]} 23. R3d2 {[%emt 0:10:17]} Ra8 {[%emt 0:02:49]} 24. Bf6 {[%emt 0:00:56]} Bxf6 {[%emt 0:04:35]} 25. Qxf6 {[%emt 0:00:05]} Re8 {[%emt 0:00:07]} 26. h4 {[%emt 0:04:15]} a4 {[%emt 0:00:58]} 27. Bc2 {[%emt 0:00:03]} Qc7 {[%emt 0:01:07]} 28. h5 {[%emt 0:01:23]} Rd6 {[%emt 0:02:05]} 29. Qh4 {[%emt 0:01:02]} Qe7 {[%emt 0:01:10]} 30. Qg3 {[%emt 0:02:12]} Qg7 {[%emt 0:02:16]} 31. a3 {[%emt 0:01:47]} Re7 {[%emt 0:02:07]} 32. Qh3 {[%emt 0:00:50]} f4 {[%emt 0:01:05]} 33. hxg6 {[%emt 0:00:27]} hxg6 {[%emt 0:00:28]} 34. c4 {[%emt 0:00:29]} d4 {[%emt 0:01:26]} 35. c5 {[%emt 0:00:02]} Rf6 {[%emt 0:01:12]} 36. b3 {[%emt 0:00:59]} Qf8 {[%emt 0:00:35]} 37. Qg4 {[%emt 0:00:33]} f3 {[%emt 0:00:33]} 38. Be4 {[%emt 0:00:32]} Bxe4 {[%emt 0:00:29]} 39. Qxe4 {[%emt 0:00:05]} Kg7 {[%emt 0:00:32]} 40. gxf3 {[%emt 0:00:46]} Rf4 {[%emt 0:00:11]} 41. Qd5 {[%emt 0:00:33]} Rf5 {[%emt 0:00:49]} 42. bxa4 {[%emt 0:00:30]} Qh8 {[%emt 0:00:29]} 43. Kf1 {[%emt 0:00:35]} Qh3+ {[%emt 0:00:14]} 44. Ke2 {[%emt 0:00:08]} e4 {[%emt 0:00:44]} 45. Qxd4+ {[%emt 0:00:04]} Kh7 {[%emt 0:00:15]} 46. Qd6 {[%emt 0:01:19]} Qxf3+ {[%emt 0:00:45]} 47. Ke1 {[%emt 0:00:07]} Ref7 {[%emt 0:00:20]} 48. Re2 {[%emt 0:00:39]} e3 {[%emt 0:00:33]} 49. fxe3 {[%emt 0:00:45]} Qh1+ {[%emt 0:00:18]} 50. Kd2 {[%emt 0:00:04]} Rd5+ {[%emt 0:00:05]} 51. Kc3 {[%emt 0:00:49]} Qxd1 {[%emt 0:00:07]} 52. Rh2+ {[%emt 0:00:21]} Kg7 {[%emt 0:00:06]} 53. Qc6 {[%emt 0:00:38]} Rd3+ {[%emt 0:00:10]} 54. Kb4 {[%emt 0:00:31]} Rb3+ {[%emt 0:00:50]} 55. Ka5 {[%emt 0:00:05]} Ra7+ {[%emt 0:00:05]} 0-1

[Event "FIDE World School-ch G-15 2025"]
[Site "Vrnjacka Banja"]
[Date "2025.03.25"]
[Round "6.2"]
[White "Imomkuzieva, Nilufarkhon"]
[Black "Aadya Gupta"]
[Result "1-0"]
[Annotator "NA RC"]
[ECO "C89"]
[WhiteElo "1983"]
[BlackElo "1928"]
[PlyCount "131"]
[EventDate "2025.03.19"]
[EventType "swiss"]
[EventCountry "SRB"]
[SourceTitle "playchess.com"]
[Source "ChessBase"]
[SourceQuality "1"]
[TimeControl "5400+30"]

1. e4 {[%emt 0:00:02]} e5 {[%emt 0:03:21]} 2. Nf3 {[%emt 0:00:05]} Nc6 {[%emt 0:00:01]} 3. Bb5 {[%emt 0:00:05]} a6 {[%emt 0:00:04]} 4. Ba4 {[%emt 0:00:03]} Nf6 {[%emt 0:00:03]} 5. O-O {[%emt 0:00:23]} Be7 {[%emt 0:00:06]} 6. Re1 {[%emt 0:00:25]} b5 {[%emt 0:00:07]} 7. Bb3 {[%emt 0:00:03]} O-O {[%emt 0:00:06]} 8. c3 {[%emt 0:00:08]} d5 {[%emt 0:00:18]} 9. exd5 {[%emt 0:02:53]} Nxd5 {[%emt 0:00:02]} 10. Nxe5 {[%emt 0:15:37]} Nxe5 {[%emt 0:00:03]} 11. Rxe5 {[%emt 0:00:05]} c6 {[%emt 0:00:03]} 12. d4 {[%emt 0:01:21]} Bd6 {[%emt 0:00:01]} 13. Re1 {[%emt 0:01:07]} Qh4 {[%emt 0:00:03]} 14. g3 {[%emt 0:00:11]} Qh3 {[%emt 0:00:02]} 15. Bxd5 {[%emt 0:00:05]} cxd5 {[%emt 0:00:17]} 16. Qf3 {[%emt 0:01:10]} Bf5 {[%emt 0:07:25]} 17. Qg2 {[%emt 0:04:30]} Rae8 {[%emt 0:01:14]} 18. Qxh3 {[%emt 0:01:48]} Rxe1+ {[%emt 0:06:13]} 19. Qf1 {[%emt 0:00:03]} Rfe8 {[%emt 0:03:49]} 20. Be3 {[%emt 0:00:05]} Rxf1+ {[%emt 0:00:35]} 21. Kxf1 {[%emt 0:00:04]} Bh3+ {[%emt 0:06:12]} 22. Kg1 {[%emt 0:00:16]} f5 {[%emt 0:05:55]} 23. Nd2 {[%emt 0:01:37]} Re6 {[%emt 0:05:42]} 24. Nb3 {[%emt 0:02:36]} f4 {[%emt 0:01:58]} 25. Bd2 {[%emt 0:00:04]} Bf5 {[%emt 0:14:49]} 26. Re1 {[%emt 0:02:59]} Rxe1+ {[%emt 0:03:41]} 27. Bxe1 {[%emt 0:00:04]} fxg3 {[%emt 0:02:59]} 28. fxg3 {[%emt 0:02:13]} Kf7 {[%emt 0:02:23]} 29. Bd2 {[%emt 0:00:35]} Kf6 {[%emt 0:05:16]} 30. Bf4 {[%emt 0:15:42]} Bxf4 {[%emt 0:03:35]} 31. gxf4 {[%emt 0:00:05]} Bb1 {[%emt 0:01:21]} 32. a3 {[%emt 0:04:28]} Kf5 {[%emt 0:03:08]} 33. Nc5 {[%emt 0:00:05]} a5 {[%emt 0:02:25]} 34. Nb7 {[%emt 0:00:05]} Kxf4 {[%emt 0:00:06]} 35. Nxa5 {[%emt 0:15:04]} Ke3 {[%emt 0:00:17]} 36. Nc6 {[%emt 0:00:18]} Kd2 {[%emt 0:03:21]} 37. Nb4 {[%emt 0:00:03]} Be4 {[%emt 0:00:16]} 38. Na6 {[%emt 0:00:16]} Kc2 {[%emt 0:06:18]} 39. Nc5 {[%emt 0:00:19]} Bf5 {[%emt 0:00:59]} 40. a4 {[%emt 0:00:42]} bxa4 {[%emt 0:01:25]} 41. Nxa4 {[%emt 0:00:09]} Kb3 {[%emt 0:00:27]} 42. Nb6 {[%emt 0:00:14]} Be4 {[%emt 0:02:50]} 43. Kf2 {[%emt 0:00:20]} Kxb2 {[%emt 0:00:28]} 44. c4 {[%emt 0:00:09]} dxc4 {[%emt 0:01:12]} 45. Nxc4+ {[%emt 0:00:05]} Kc3 {[%emt 0:00:21]} 46. Ke3 {[%emt 0:00:02]} Bc6 {[%emt 0:02:34]} 47. Ne5 {[%emt 0:02:21]} Bd5 {[%emt 0:01:09]} 48. Nd7 {[%emt 0:00:06]} Bc6 {[%emt 0:02:24]} 49. Nb6 {[%emt 0:02:25]} Kb4 {[%emt 0:00:49]} 50. Kf4 {[%emt 0:00:04]} g5+ {[%emt 0:02:19]} 51. Ke5 {[%emt 0:01:06]} h5 {[%emt 0:01:33]} 52. d5 {[%emt 0:00:39]} Bb5 {[%emt 0:01:20]} 53. d6 {[%emt 0:00:20]} g4 {[%emt 0:00:51]} 54. Kf4 {[%emt 0:00:09]} Kc5 {[%emt 0:02:42]} 55. d7 {[%emt 0:00:03]} Bxd7 {[%emt 0:00:25]} 56. Nxd7+ {[%emt 0:00:03]} Kd6 {[%emt 0:00:08]} 57. Nf6 {[%emt 0:00:05]} Ke6 {[%emt 0:00:29]} 58. Nxh5 {[%emt 0:00:04]} Kf7 {[%emt 0:00:11]} 59. Kxg4 {[%emt 0:00:05]} Kg6 {[%emt 0:00:06]} 60. h4 {[%emt 0:00:03]} Kh6 {[%emt 0:00:03]} 61. Nf4 {[%emt 0:00:15]} Kh7 {[%emt 0:00:14]} 62. Kg5 {[%emt 0:00:22]} Kg7 {[%emt 0:00:03]} 63. h5 {[%emt 0:00:04]} Kh7 {[%emt 0:00:02]} 64. h6 {[%emt 0:00:07]} Kg8 {[%emt 0:00:00]} 65. Kg6 {[%emt 0:00:00]} Kh8 {[%emt 0:00:00]} 66. Nh3 {[%emt 0:00:00]} 1-0

[Event "FIDE World School-ch G-15 2025"]
[Site "Vrnjacka Banja"]
[Date "2025.03.25"]
[Round "6.3"]
[White "Ferrer Naranjo, Liennys"]
[Black "Zarkym, Ailin"]
[Result "1/2-1/2"]
[Annotator "NA RC"]
[ECO "B56"]
[WhiteElo "1950"]
[BlackElo "1763"]
[PlyCount "156"]
[EventDate "2025.03.19"]
[EventType "swiss"]
[EventCountry "SRB"]
[SourceTitle "playchess.com"]
[Source "ChessBase"]
[SourceQuality "1"]
[TimeControl "5400+30"]

1. e4 {[%emt 0:00:01]} c5 {[%emt 0:00:07]} 2. Nf3 {[%emt 0:00:05]} d6 {[%emt 0:00:06]} 3. d4 {[%emt 0:00:03]} cxd4 {[%emt 0:00:05]} 4. Nxd4 {[%emt 0:00:04]} Nf6 {[%emt 0:00:07]} 5. Nc3 {[%emt 0:00:04]} Nc6 {[%emt 0:00:06]} 6. g3 {[%emt 0:00:21]} e5 {[%emt 0:02:30]} 7. Nb3 {[%emt 0:01:08]} Be6 {[%emt 0:02:42]} 8. Bg2 {[%emt 0:01:28]} Qd7 {[%emt 0:02:07]} 9. Bg5 {[%emt 0:03:12]} Be7 {[%emt 0:00:30]} 10. Qd2 {[%emt 0:01:51]} h6 {[%emt 0:01:16]} 11. Bxf6 {[%emt 0:03:03]} Bxf6 {[%emt 0:00:11]} 12. h4 {[%emt 0:07:17]} O-O {[%emt 0:10:55]} 13. O-O {[%emt 0:05:20]} Rac8 {[%emt 0:07:36]} 14. Ne2 {[%emt 0:05:14]} Qc7 {[%emt 0:11:31]} 15. c3 {[%emt 0:05:41]} a5 {[%emt 0:06:21]} 16. Qe3 {[%emt 0:08:29]} a4 {[%emt 0:01:24]} 17. Nd2 {[%emt 0:00:46]} Na5 {[%emt 0:00:37]} 18. Rfd1 {[%emt 0:08:54]} Nc4 {[%emt 0:03:10]} 19. Nxc4 {[%emt 0:00:13]} Bxc4 {[%emt 0:00:15]} 20. Nc1 {[%emt 0:04:06]} Qc6 {[%emt 0:05:02]} 21. Nd3 {[%emt 0:03:12]} Bxd3 {[%emt 0:05:48]} 22. Rxd3 {[%emt 0:01:15]} Ra8 {[%emt 0:07:01]} 23. Rad1 {[%emt 0:04:01]} Be7 {[%emt 0:01:42]} 24. a3 {[%emt 0:03:02]} Qb5 {[%emt 0:02:46]} 25. R1d2 {[%emt 0:01:15]} Rfc8 {[%emt 0:05:35]} 26. Bf1 {[%emt 0:04:35]} Qc6 {[%emt 0:02:07]} 27. Rd5 {[%emt 0:03:13]} Qc7 {[%emt 0:01:34]} 28. Rb5 {[%emt 0:02:20]} Ra5 {[%emt 0:04:44]} 29. Rdd5 {[%emt 0:02:26]} Rxb5 {[%emt 0:00:21]} 30. Rxb5 {[%emt 0:00:47]} Ra8 {[%emt 0:03:05]} 31. Qb6 {[%emt 0:01:33]} Qxb6 {[%emt 0:00:49]} 32. Rxb6 {[%emt 0:00:07]} Ra7 {[%emt 0:00:03]} 33. Bc4 {[%emt 0:00:51]} g5 {[%emt 0:06:48]} 34. hxg5 {[%emt 0:02:50]} Bxg5 {[%emt 0:00:58]} 35. Rxd6 {[%emt 0:00:54]} b5 {[%emt 0:00:12]} 36. Bxb5 {[%emt 0:01:02]} Bc1 {[%emt 0:00:06]} 37. Ra6 {[%emt 0:02:48]} Rxa6 {[%emt 0:00:23]} 38. Bxa6 {[%emt 0:00:04]} Bxb2 {[%emt 0:00:05]} 39. c4 {[%emt 0:00:33]} Bxa3 {[%emt 0:00:07]} 40. Bb5 {[%emt 0:00:04]} Bc5 {[%emt 0:00:19]} 41. Bxa4 {[%emt 0:00:04]} Kg7 {[%emt 0:00:31]} 42. Kf1 {[%emt 0:00:27]} Kf6 {[%emt 0:00:33]} 43. Ke2 {[%emt 0:00:36]} Kg5 {[%emt 0:01:06]} 44. Bd7 {[%emt 0:00:44]} f6 {[%emt 0:00:23]} 45. Bf5 {[%emt 0:00:51]} h5 {[%emt 0:00:29]} 46. Kf3 {[%emt 0:03:55]} h4 {[%emt 0:00:46]} 47. gxh4+ {[%emt 0:00:08]} Kxh4 {[%emt 0:00:02]} 48. Ke2 {[%emt 0:00:18]} Kg5 {[%emt 0:00:06]} 49. f3 {[%emt 0:01:06]} Kf4 {[%emt 0:00:06]} 50. Bg4 {[%emt 0:00:38]} Bd4 {[%emt 0:00:16]} 51. Kd3 {[%emt 0:01:09]} Bc5 {[%emt 0:00:09]} 52. Bh5 {[%emt 0:01:06]} Kg5 {[%emt 0:00:36]} 53. Be8 {[%emt 0:00:55]} Kf4 {[%emt 0:00:10]} 54. Ke2 {[%emt 0:00:20]} Bd4 {[%emt 0:00:23]} 55. Ba4 {[%emt 0:00:18]} Bc5 {[%emt 0:00:42]} 56. Bd1 {[%emt 0:00:24]} Bd4 {[%emt 0:00:10]} 57. Kd3 {[%emt 0:00:21]} Bc5 {[%emt 0:00:05]} 58. Kd2 {[%emt 0:01:40]} Bb4+ {[%emt 0:00:28]} 59. Kc2 {[%emt 0:00:48]} Ke3 {[%emt 0:00:08]} 60. Kb3 {[%emt 0:00:09]} Bf8 {[%emt 0:00:50]} 61. Ka4 {[%emt 0:02:10]} Kd2 {[%emt 0:01:09]} 62. Bb3 {[%emt 0:00:06]} Kc3 {[%emt 0:00:03]} 63. c5 {[%emt 0:01:15]} Bxc5 {[%emt 0:00:12]} 64. Kb5 {[%emt 0:00:22]} Bd4 {[%emt 0:00:34]} 65. Be6 {[%emt 0:00:28]} Kd2 {[%emt 0:00:09]} 66. Kc6 {[%emt 0:00:16]} Ke3 {[%emt 0:00:06]} 67. Bg4 {[%emt 0:00:04]} Kf4 {[%emt 0:00:03]} 68. Kd5 {[%emt 0:00:19]} Bb2 {[%emt 0:00:07]} 69. Ke6 {[%emt 0:00:18]} Bd4 {[%emt 0:00:05]} 70. Kxf6 {[%emt 0:00:17]} Bb2 {[%emt 0:00:05]} 71. Ke6 {[%emt 0:00:08]} Bd4 {[%emt 0:00:04]} 72. Kd5 {[%emt 0:00:13]} Bf2 {[%emt 0:00:04]} 73. Ke6 {[%emt 0:00:08]} Bh4 {[%emt 0:00:04]} 74. Kd5 {[%emt 0:00:09]} Bf2 {[%emt 0:00:04]} 75. Bf5 {[%emt 0:00:28]} Bd4 {[%emt 0:00:32]} 76. Bg4 {[%emt 0:00:05]} Bb2 {[%emt 0:00:05]} 77. Ke6 {[%emt 0:00:07]} Bd4 {[%emt 0:00:07]} 78. Kd5 {[%emt 0:00:04]} Bb2 {[%emt 0:00:08]} 1/2-1/2

[Event "FIDE World School-ch G-15 2025"]
[Site "Vrnjacka Banja"]
[Date "2025.03.25"]
[Round "6.4"]
[White "Jocic, Nina"]
[Black "Assylkhan, Asiya"]
[Result "0-1"]
[Annotator "NA RC"]
[ECO "A36"]
[WhiteElo "1776"]
[BlackElo "1969"]
[PlyCount "132"]
[EventDate "2025.03.19"]
[EventType "swiss"]
[EventCountry "SRB"]
[SourceTitle "playchess.com"]
[Source "ChessBase"]
[SourceQuality "1"]
[TimeControl "5400+30"]

1. e4 {[%emt 0:00:02]} c5 {[%emt 0:00:04]} 2. c4 {[%emt 0:00:04]} Nc6 {[%emt 0:00:04]} 3. Nc3 {[%emt 0:00:07]} g6 {[%emt 0:00:05]} 4. g3 {[%emt 0:00:03]} Bg7 {[%emt 0:00:05]} 5. Bg2 {[%emt 0:00:03]} a6 {[%emt 0:00:06]} 6. d3 {[%emt 0:00:10]} b5 {[%emt 0:00:17]} 7. Nge2 {[%emt 0:00:45]} Rb8 {[%emt 0:00:06]} 8. Rb1 {[%emt 0:00:19]} d6 {[%emt 0:00:24]} 9. Be3 {[%emt 0:01:46]} Nf6 {[%emt 0:00:54]} 10. f3 {[%emt 0:01:03]} Bd7 {[%emt 0:02:48]} 11. b3 {[%emt 0:01:36]} h5 {[%emt 0:19:46]} 12. h3 {[%emt 0:09:30]} Qa5 {[%emt 0:06:58]} 13. Qd2 {[%emt 0:07:18]} Nh7 {[%emt 0:06:14]} 14. Bh6 {[%emt 0:12:27]} Bf6 {[%emt 0:01:02]} 15. h4 {[%emt 0:07:39]} Nf8 {[%emt 0:04:10]} 16. Be3 {[%emt 0:04:11]} Ne6 {[%emt 0:00:45]} 17. Nd5 {[%emt 0:01:24]} Qxd2+ {[%emt 0:01:04]} 18. Kxd2 {[%emt 0:00:47]} Bg7 {[%emt 0:00:42]} 19. Rhf1 {[%emt 0:09:22]} b4 {[%emt 0:06:23]} 20. Kc2 {[%emt 0:13:34]} a5 {[%emt 0:05:13]} 21. Bc1 {[%emt 0:00:25]} Ned4+ {[%emt 0:00:44]} 22. Nxd4 {[%emt 0:00:36]} Nxd4+ {[%emt 0:00:09]} 23. Kd2 {[%emt 0:00:52]} e6 {[%emt 0:12:40]} 24. Nf4 {[%emt 0:00:53]} a4 {[%emt 0:06:20]} 25. Ne2 {[%emt 0:07:40]} axb3 {[%emt 0:02:38]} 26. axb3 {[%emt 0:00:10]} Nxe2 {[%emt 0:00:05]} 27. Kxe2 {[%emt 0:00:04]} Ra8 {[%emt 0:00:05]} 28. f4 {[%emt 0:02:24]} Ra2+ {[%emt 0:00:51]} 29. Bd2 {[%emt 0:01:52]} Ke7 {[%emt 0:00:50]} 30. e5 {[%emt 0:02:51]} dxe5 {[%emt 0:01:35]} 31. f5 {[%emt 0:00:12]} exf5 {[%emt 0:00:41]} 32. Ra1 {[%emt 0:00:10]} Rb2 {[%emt 0:02:34]} 33. Ra7 {[%emt 0:02:40]} Bh6 {[%emt 0:00:12]} 34. Rd1 {[%emt 0:00:22]} Rc8 {[%emt 0:00:32]} 35. Ke1 {[%emt 0:01:42]} Bxd2+ {[%emt 0:02:06]} 36. Rxd2 {[%emt 0:00:04]} Rxd2 {[%emt 0:02:28]} 37. Kxd2 {[%emt 0:00:08]} Kd6 {[%emt 0:00:03]} 38. Bd5 {[%emt 0:01:16]} Be6 {[%emt 0:01:06]} 39. Ra6+ {[%emt 0:00:52]} Ke7 {[%emt 0:00:07]} 40. Ra7+ {[%emt 0:00:16]} Kf6 {[%emt 0:00:42]} 41. Ra6 {[%emt 0:00:21]} f4 {[%emt 0:00:17]} 42. gxf4 {[%emt 0:02:34]} exf4 {[%emt 0:00:05]} 43. Be4 {[%emt 0:01:01]} Ke5 {[%emt 0:00:45]} 44. Ra7 {[%emt 0:00:41]} Rd8 {[%emt 0:04:33]} 45. Rc7 {[%emt 0:00:51]} Kd4 {[%emt 0:00:14]} 46. Rc6 {[%emt 0:00:23]} Rc8 {[%emt 0:00:32]} 47. Ra6 {[%emt 0:01:08]} Ke5 {[%emt 0:00:18]} 48. Ra7 {[%emt 0:00:30]} Kf6 {[%emt 0:01:57]} 49. Ke2 {[%emt 0:02:51]} g5 {[%emt 0:01:03]} 50. Bf3 {[%emt 0:01:41]} g4 {[%emt 0:00:43]} 51. Be4 {[%emt 0:00:07]} Ke5 {[%emt 0:00:12]} 52. Ra6 {[%emt 0:01:01]} Kd4 {[%emt 0:01:33]} 53. Kd2 {[%emt 0:00:15]} f3 {[%emt 0:00:57]} 54. Bb7 {[%emt 0:02:07]} Rb8 {[%emt 0:01:35]} 55. Be4 {[%emt 0:00:05]} f2 {[%emt 0:03:07]} 56. Bg2 {[%emt 0:00:09]} g3 {[%emt 0:00:06]} 57. Ra7 {[%emt 0:01:16]} Rg8 {[%emt 0:00:34]} 58. Re7 {[%emt 0:00:23]} f1=Q {[%emt 0:00:25]} 59. Bxf1 {[%emt 0:01:42]} g2 {[%emt 0:00:05]} 60. Bxg2 {[%emt 0:00:31]} Rxg2+ {[%emt 0:00:01]} 61. Kd1 {[%emt 0:00:26]} Kxd3 {[%emt 0:00:23]} 62. Ke1 {[%emt 0:00:12]} Kc3 {[%emt 0:00:39]} 63. Rc7 {[%emt 0:00:13]} Kxb3 {[%emt 0:00:42]} 64. Rxc5 {[%emt 0:00:05]} Bxc4 {[%emt 0:00:04]} 65. Rxh5 {[%emt 0:00:05]} Kc3 {[%emt 0:00:12]} 66. Rh7 {[%emt 0:00:24]} b3 {[%emt 0:00:06]} 0-1

[Event "FIDE World School-ch G-15 2025"]
[Site "Vrnjacka Banja"]
[Date "2025.03.25"]
[Round "6.5"]
[White "Aldea, Maria-Antonia"]
[Black "Badica, Ariana"]
[Result "1-0"]
[Annotator "NA RC"]
[ECO "A05"]
[WhiteElo "1954"]
[BlackElo "1890"]
[PlyCount "111"]
[EventDate "2025.03.19"]
[EventType "swiss"]
[EventCountry "SRB"]
[SourceTitle "playchess.com"]
[Source "ChessBase"]
[SourceQuality "1"]
[TimeControl "5400+30"]

1. Nf3 {[%emt 0:00:03]} Nf6 {[%emt 0:00:16]} 2. b3 {[%emt 0:00:26]} e6 {[%emt 0:00:17]} 3. Bb2 {[%emt 0:00:10]} Be7 {[%emt 0:00:22]} 4. e3 {[%emt 0:00:37]} O-O {[%emt 0:00:29]} 5. d4 {[%emt 0:02:40]} b6 {[%emt 0:01:23]} 6. Nbd2 {[%emt 0:07:02]} Bb7 {[%emt 0:00:42]} 7. Bd3 {[%emt 0:01:44]} c5 {[%emt 0:03:25]} 8. c4 {[%emt 0:09:59]} cxd4 {[%emt 0:01:44]} 9. Bxd4 {[%emt 0:03:01]} d5 {[%emt 0:00:57]} 10. O-O {[%emt 0:00:55]} Nc6 {[%emt 0:08:00]} 11. Bb2 {[%emt 0:01:26]} Rc8 {[%emt 0:01:13]} 12. a3 {[%emt 0:00:51]} Ba6 {[%emt 0:03:53]} 13. Qe2 {[%emt 0:04:39]} Na5 {[%emt 0:11:41]} 14. Ne5 {[%emt 0:08:14]} Bd6 {[%emt 0:09:04]} 15. cxd5 {[%emt 0:08:06]} Bxd3 {[%emt 0:01:29]} 16. Nxd3 {[%emt 0:05:07]} Nxd5 {[%emt 0:08:59]} 17. Rfc1 {[%emt 0:04:46]} Qd7 {[%emt 0:06:48]} 18. b4 {[%emt 0:04:54]} Nb7 {[%emt 0:03:35]} 19. Nc4 {[%emt 0:05:31]} f6 {[%emt 0:06:04]} 20. g3 {[%emt 0:05:17]} Bc7 {[%emt 0:04:34]} 21. e4 {[%emt 0:02:22]} Ne7 {[%emt 0:04:45]} 22. Rd1 {[%emt 0:02:43]} Qb5 {[%emt 0:05:50]} 23. Ne3 {[%emt 0:02:40]} Nd6 {[%emt 0:02:23]} 24. Qg4 {[%emt 0:02:03]} e5 {[%emt 0:09:42]} 25. Qe6+ {[%emt 0:03:05]} Kh8 {[%emt 0:02:28]} 26. f3 {[%emt 0:02:08]} Ng6 {[%emt 0:01:31]} 27. Rac1 {[%emt 0:02:26]} Rfe8 {[%emt 0:01:14]} 28. Qb3 {[%emt 0:00:32]} Bb8 {[%emt 0:00:53]} 29. a4 {[%emt 0:00:53]} Qd7 {[%emt 0:00:25]} 30. b5 {[%emt 0:02:22]} Rxc1 {[%emt 0:00:48]} 31. Rxc1 {[%emt 0:00:05]} f5 {[%emt 0:00:32]} 32. exf5 {[%emt 0:01:52]} Nxf5 {[%emt 0:00:05]} 33. Nxf5 {[%emt 0:00:58]} Qxf5 {[%emt 0:00:04]} 34. Nf2 {[%emt 0:01:00]} Bd6 {[%emt 0:01:19]} 35. Ne4 {[%emt 0:01:28]} Be7 {[%emt 0:00:32]} 36. Rc7 {[%emt 0:01:58]} Rf8 {[%emt 0:00:32]} 37. Kg2 {[%emt 0:00:38]} Bc5 {[%emt 0:00:30]} 38. Nxc5 {[%emt 0:00:52]} bxc5 {[%emt 0:00:01]} 39. Rxc5 {[%emt 0:00:53]} Rd8 {[%emt 0:00:59]} 40. Qc2 {[%emt 0:00:48]} Qg5 {[%emt 0:00:30]} 41. Bc1 {[%emt 0:01:57]} Qe7 {[%emt 0:00:31]} 42. Rc7 {[%emt 0:00:58]} Qe6 {[%emt 0:00:26]} 43. Rxa7 {[%emt 0:00:42]} h5 {[%emt 0:00:33]} 44. Ra6 {[%emt 0:00:32]} Nh4+ {[%emt 0:00:29]} 45. gxh4 {[%emt 0:00:19]} Qd5 {[%emt 0:00:31]} 46. Rc6 {[%emt 0:00:53]} Qd7 {[%emt 0:00:30]} 47. Rc7 {[%emt 0:00:44]} Qe6 {[%emt 0:00:22]} 48. a5 {[%emt 0:00:35]} Rf8 {[%emt 0:00:37]} 49. Rc3 {[%emt 0:00:34]} g6 {[%emt 0:00:32]} 50. b6 {[%emt 0:00:28]} Qf7 {[%emt 0:00:29]} 51. Qe2 {[%emt 0:00:31]} Re8 {[%emt 0:00:29]} 52. Rc7 {[%emt 0:00:21]} Qf5 {[%emt 0:00:30]} 53. Qe4 {[%emt 0:00:18]} Qe6 {[%emt 0:00:28]} 54. Qc2 {[%emt 0:00:49]} Rf8 {[%emt 0:00:34]} 55. Qd2 {[%emt 0:00:12]} Qf6 {[%emt 0:00:24]} 56. Qh6+ {[%emt 0:00:05]} 1-0

[Event "FIDE World School-ch G-15 2025"]
[Site "Vrnjacka Banja"]
[Date "2025.03.25"]
[Round "6.6"]
[White "Torres Ccahuay, Dayana Nievevska"]
[Black "Biro, Beata"]
[Result "1-0"]
[Annotator "NA RC"]
[ECO "B22"]
[WhiteElo "1840"]
[BlackElo "1877"]
[PlyCount "91"]
[EventDate "2025.03.19"]
[EventType "swiss"]
[EventCountry "SRB"]
[SourceTitle "playchess.com"]
[Source "ChessBase"]
[SourceQuality "1"]
[TimeControl "5400+30"]

1. e4 {[%emt 0:00:02]} c5 {[%emt 0:00:09]} 2. Nf3 {[%emt 0:00:18]} Nc6 {[%emt 0:00:10]} 3. c3 {[%emt 0:00:02]} d5 {[%emt 0:00:15]} 4. exd5 {[%emt 0:00:12]} Qxd5 {[%emt 0:00:09]} 5. d4 {[%emt 0:00:06]} Bf5 {[%emt 0:00:20]} 6. Be2 {[%emt 0:02:01]} cxd4 {[%emt 0:03:21]} 7. cxd4 {[%emt 0:02:28]} e6 {[%emt 0:02:55]} 8. Nc3 {[%emt 0:00:18]} Bb4 {[%emt 0:02:15]} 9. O-O {[%emt 0:00:23]} Bxc3 {[%emt 0:01:09]} 10. bxc3 {[%emt 0:00:07]} Nge7 {[%emt 0:01:13]} 11. c4 {[%emt 0:10:08]} Qd7 {[%emt 0:00:55]} 12. Ba3 {[%emt 0:01:33]} Rd8 {[%emt 0:04:13]} 13. Qb3 {[%emt 0:06:38]} O-O {[%emt 0:07:29]} 14. Rad1 {[%emt 0:15:19]} Rfe8 {[%emt 0:02:55]} 15. Rd2 {[%emt 0:13:23]} Be4 {[%emt 0:07:06]} 16. Rfd1 {[%emt 0:01:57]} h6 {[%emt 0:06:58]} 17. Qe3 {[%emt 0:09:50]} Bxf3 {[%emt 0:08:22]} 18. Qxf3 {[%emt 0:00:14]} Qc8 {[%emt 0:05:51]} 19. d5 {[%emt 0:07:30]} Ne5 {[%emt 0:05:41]} 20. Qc3 {[%emt 0:04:21]} N7g6 {[%emt 0:03:06]} 21. f4 {[%emt 0:00:26]} Nd7 {[%emt 0:00:25]} 22. dxe6 {[%emt 0:04:40]} Nf6 {[%emt 0:06:24]} 23. Rxd8 {[%emt 0:13:44]} Rxd8 {[%emt 0:00:14]} 24. e7 {[%emt 0:00:05]} Rxd1+ {[%emt 0:02:38]} 25. Bxd1 {[%emt 0:00:01]} Qd7 {[%emt 0:02:49]} 26. Qe1 {[%emt 0:02:56]} Nxf4 {[%emt 0:04:17]} 27. Bf3 {[%emt 0:00:12]} Ne6 {[%emt 0:01:14]} 28. Qe5 {[%emt 0:01:43]} Ne8 {[%emt 0:03:05]} 29. Qd5 {[%emt 0:00:53]} Qc7 {[%emt 0:02:40]} 30. Qb5 {[%emt 0:01:00]} Qb6+ {[%emt 0:01:20]} 31. Qxb6 {[%emt 0:00:08]} axb6 {[%emt 0:00:08]} 32. Bxb7 {[%emt 0:01:02]} f5 {[%emt 0:02:54]} 33. Kf2 {[%emt 0:00:33]} Kf7 {[%emt 0:00:34]} 34. Bd5 {[%emt 0:00:33]} g5 {[%emt 0:01:26]} 35. Bb4 {[%emt 0:00:13]} Kf6 {[%emt 0:02:00]} 36. Bc6 {[%emt 0:00:29]} N6c7 {[%emt 0:01:31]} 37. a4 {[%emt 0:00:35]} Ke6 {[%emt 0:01:23]} 38. c5 {[%emt 0:01:09]} bxc5 {[%emt 0:00:40]} 39. Bxc5 {[%emt 0:00:02]} Kf7 {[%emt 0:01:30]} 40. a5 {[%emt 0:00:12]} Na6 {[%emt 0:00:55]} 41. Ba3 {[%emt 0:00:35]} h5 {[%emt 0:01:12]} 42. Bb5 {[%emt 0:00:34]} Nac7 {[%emt 0:00:42]} 43. Bc4+ {[%emt 0:00:55]} Kf6 {[%emt 0:00:20]} 44. a6 {[%emt 0:00:13]} f4 {[%emt 0:00:35]} 45. a7 {[%emt 0:00:07]} g4 {[%emt 0:00:36]} 46. Bd5 {[%emt 0:03:40]} 1-0